[Event "Late-Titled-Tuesday-Blitz-September-05-2023"]
[Site "Chess.com"]
[Date "2023.09.05"]
[Round "3"]
[White "Jospem"]
[Black "KNVB"]
[Result "1-0"]
[WhiteElo "3044"]
[BlackElo "2733"]
[TimeControl "180+1"]
[EndTime "14:27:31 PDT"]
[Termination "Jospem won on time"]

1. e4 {[%clk 0:03:00.9]} 1... b6 {[%clk 0:02:55.1]} 2. d4 {[%clk 0:03:00.9]}
2... Bb7 {[%clk 0:02:55.4]} 3. Bd3 {[%clk 0:03:00.8]} 3... e6 {[%clk 0:02:56]}
4. Qe2 {[%clk 0:03:00.5]} 4... d5 {[%clk 0:02:56.2]} 5. Nc3 {[%clk 0:02:53.6]}
5... Bb4 {[%clk 0:02:54.7]} 6. exd5 {[%clk 0:02:45.2]} 6... Qxd5 {[%clk
0:02:53.2]} 7. Nf3 {[%clk 0:02:45.5]} 7... Nf6 {[%clk 0:02:51.1]} 8. O-O {[%clk
0:02:45]} 8... Bxc3 {[%clk 0:02:51.2]} 9. bxc3 {[%clk 0:02:45.1]} 9... Qh5
{[%clk 0:02:51.8]} 10. Bf4 {[%clk 0:02:35.3]} 10... c5 {[%clk 0:02:08.2]} 11.
dxc5 {[%clk 0:02:13.2]} 11... Qxc5 {[%clk 0:01:31]} 12. Rfd1 {[%clk 0:02:04.5]}
12... Nbd7 {[%clk 0:01:08.2]} 13. Bb5 {[%clk 0:01:45.1]} 13... Bc6 {[%clk
0:00:37.8]} 14. Nd4 {[%clk 0:01:44.4]} 14... Bxb5 {[%clk 0:00:21.1]} 15. Nxb5
{[%clk 0:01:45.3]} 15... O-O {[%clk 0:00:21.1]} 16. Bd6 {[%clk 0:01:43.2]} 16...
Qf5 {[%clk 0:00:08]} 17. Bxf8 {[%clk 0:01:42.5]} 17... Nxf8 {[%clk 0:00:08.9]}
18. c4 {[%clk 0:01:41.4]} 18... a6 {[%clk 0:00:08]} 19. Nd6 {[%clk 0:01:41.1]}
19... Qc5 {[%clk 0:00:02.7]} 20. Rab1 {[%clk 0:01:36.6]} 20... N8d7 {[%clk
0:00:03.1]} 21. Qf3 {[%clk 0:01:35.2]} 21... Rb8 {[%clk 0:00:03.1]} 22. h3
{[%clk 0:01:33.2]} 22... h6 {[%clk 0:00:03.5]} 23. Qg3 {[%clk 0:01:32.5]} 23...
Rf8 {[%clk 0:00:01.8]} 24. Qe3 {[%clk 0:01:31]} 24... Qc6 {[%clk 0:00:01.5]} 25.
Rd4 {[%clk 0:01:26]} 25... Nc5 {[%clk 0:00:01.7]} 26. Rbd1 {[%clk 0:01:24.2]}
26... Na4 {[%clk 0:00:01.8]} 27. Rf4 {[%clk 0:01:20.6]} 27... Nc5 {[%clk
0:00:01.8]} 28. Rxf6 {[%clk 0:01:18.2]} 28... gxf6 {[%clk 0:00:02.7]} 29. Rd4
{[%clk 0:01:18.8]} 29... f5 {[%clk 0:00:02.7]} 30. Qxh6 {[%clk 0:01:17]} 30...
Nd7 {[%clk 0:00:01.6]} 31. Qg5+ {[%clk 0:01:16.1]} 1-0

[Event "Late-Titled-Tuesday-Blitz-September-05-2023"]
[Site "Chess.com"]
[Date "2023.09.05"]
[Round "3"]
[White "Durarbayli"]
[Black "Taran2004"]
[Result "1-0"]
[WhiteElo "2866"]
[BlackElo "2398"]
[TimeControl "180+1"]
[EndTime "14:27:50 PDT"]
[Termination "Durarbayli won by resignation"]

1. e4 {[%clk 0:03:00.9]} 1... c6 {[%clk 0:02:57.8]} 2. d4 {[%clk 0:03:00.5]}
2... d5 {[%clk 0:02:58.1]} 3. exd5 {[%clk 0:03:01.4]} 3... cxd5 {[%clk
0:02:58.5]} 4. c4 {[%clk 0:03:02.1]} 4... Nf6 {[%clk 0:02:58.8]} 5. Nc3 {[%clk
0:03:02.7]} 5... Nc6 {[%clk 0:02:58.8]} 6. Nf3 {[%clk 0:03:02.6]} 6... e6 {[%clk
0:02:57]} 7. c5 {[%clk 0:03:03]} 7... Be7 {[%clk 0:02:54.4]} 8. Bb5 {[%clk
0:03:03.6]} 8... O-O {[%clk 0:02:54.2]} 9. O-O {[%clk 0:03:02.9]} 9... Qc7
{[%clk 0:02:52.1]} 10. Re1 {[%clk 0:02:58.6]} 10... Bd7 {[%clk 0:02:52.2]} 11.
Bxc6 {[%clk 0:02:56.8]} 11... Bxc6 {[%clk 0:02:53.1]} 12. Ne5 {[%clk 0:02:57]}
12... b6 {[%clk 0:02:53.3]} 13. Bf4 {[%clk 0:02:52]} 13... Qb7 {[%clk
0:02:49.8]} 14. b4 {[%clk 0:02:51]} 14... a6 {[%clk 0:02:28.4]} 15. Qd3 {[%clk
0:02:39.4]} 15... Rac8 {[%clk 0:02:16.4]} 16. Rab1 {[%clk 0:02:32.7]} 16... Rfd8
{[%clk 0:02:07.2]} 17. a4 {[%clk 0:02:30.7]} 17... Be8 {[%clk 0:01:58]} 18. h3
{[%clk 0:02:16.9]} 18... Ne4 {[%clk 0:01:39.3]} 19. Rbc1 {[%clk 0:01:31.2]}
19... Nxc3 {[%clk 0:01:00.4]} 20. Rxc3 {[%clk 0:01:30.8]} 20... Bxa4 {[%clk
0:00:56.2]} 21. Rec1 {[%clk 0:01:29.5]} 21... bxc5 {[%clk 0:00:46.1]} 22. bxc5
{[%clk 0:01:30.4]} 22... f6 {[%clk 0:00:39.9]} 23. Ng4 {[%clk 0:01:25.9]} 23...
Bb5 {[%clk 0:00:22.8]} 24. Qg3 {[%clk 0:01:24.2]} 24... Kf7 {[%clk 0:00:20.2]}
25. Re1 {[%clk 0:01:18.3]} 25... a5 {[%clk 0:00:19.9]} 26. Rce3 {[%clk
0:01:17.2]} 26... Bd7 {[%clk 0:00:19.1]} 27. Rb3 {[%clk 0:01:17.1]} 27... Qc6
{[%clk 0:00:18.1]} 28. Qe3 {[%clk 0:01:00.6]} 28... Bxc5 {[%clk 0:00:14.9]} 29.
dxc5 {[%clk 0:00:59.1]} 29... Qxc5 {[%clk 0:00:15.8]} 30. Qg3 {[%clk 0:00:54.5]}
30... a4 {[%clk 0:00:15]} 31. Rb7 {[%clk 0:00:48.9]} 31... Kg8 {[%clk
0:00:09.9]} 32. Nxf6+ {[%clk 0:00:48.3]} 1-0

[Event "Late-Titled-Tuesday-Blitz-September-05-2023"]
[Site "Chess.com"]
[Date "2023.09.05"]
[Round "3"]
[White "Willychess95"]
[Black "IM_Tissir"]
[Result "1-0"]
[WhiteElo "2694"]
[BlackElo "2469"]
[TimeControl "180+1"]
[EndTime "14:27:52 PDT"]
[Termination "Willychess95 won by resignation"]

1. e4 {[%clk 0:02:59.4]} 1... c5 {[%clk 0:02:53.6]} 2. Nf3 {[%clk 0:02:58.9]}
2... e6 {[%clk 0:02:53.7]} 3. g3 {[%clk 0:02:57.2]} 3... Nf6 {[%clk 0:02:32.2]}
4. Qe2 {[%clk 0:02:53.5]} 4... Nc6 {[%clk 0:02:31.1]} 5. Bg2 {[%clk 0:02:48.7]}
5... d6 {[%clk 0:02:29.9]} 6. O-O {[%clk 0:02:48]} 6... Be7 {[%clk 0:02:25.2]}
7. c3 {[%clk 0:02:46.8]} 7... O-O {[%clk 0:02:20.2]} 8. d4 {[%clk 0:02:44.3]}
8... e5 {[%clk 0:02:08.3]} 9. dxc5 {[%clk 0:02:41.9]} 9... dxc5 {[%clk
0:02:07.8]} 10. Rd1 {[%clk 0:02:37.9]} 10... Qc7 {[%clk 0:02:00.6]} 11. h3
{[%clk 0:02:30]} 11... Rd8 {[%clk 0:01:55.1]} 12. Rxd8+ {[%clk 0:02:27.5]} 12...
Qxd8 {[%clk 0:01:55.2]} 13. Bg5 {[%clk 0:02:22.8]} 13... h6 {[%clk 0:01:53.6]}
14. Bxf6 {[%clk 0:02:21.8]} 14... Bxf6 {[%clk 0:01:54.5]} 15. Nbd2 {[%clk
0:02:21.6]} 15... Be6 {[%clk 0:01:53.8]} 16. Nf1 {[%clk 0:02:18]} 16... c4
{[%clk 0:01:48.8]} 17. Ne3 {[%clk 0:02:09.7]} 17... b5 {[%clk 0:01:04.9]} 18.
Rd1 {[%clk 0:02:01.9]} 18... Qa5 {[%clk 0:01:04.3]} 19. a3 {[%clk 0:02:01.8]}
19... Rd8 {[%clk 0:01:01.9]} 20. Nd5 {[%clk 0:02:01.2]} 20... Rd7 {[%clk
0:00:49.4]} 21. Nxf6+ {[%clk 0:01:56.6]} 21... gxf6 {[%clk 0:00:50.3]} 22. Rxd7
{[%clk 0:01:56.4]} 22... Bxd7 {[%clk 0:00:48.7]} 23. Qd2 {[%clk 0:01:56.7]}
23... Be6 {[%clk 0:00:40.7]} 24. Qxh6 {[%clk 0:01:56.2]} 24... Qd8 {[%clk
0:00:40.8]} 25. Qd2 {[%clk 0:01:52.3]} 25... Qe7 {[%clk 0:00:37.4]} 26. Kh2
{[%clk 0:01:47]} 26... a5 {[%clk 0:00:37.1]} 27. h4 {[%clk 0:01:46.1]} 27... b4
{[%clk 0:00:37.5]} 28. axb4 {[%clk 0:01:45.5]} 28... axb4 {[%clk 0:00:38.4]} 29.
Bh3 {[%clk 0:01:44.5]} 29... bxc3 {[%clk 0:00:36.9]} 30. bxc3 {[%clk 0:01:44]}
30... Qc5 {[%clk 0:00:34.8]} 31. Bxe6 {[%clk 0:01:40.9]} 31... fxe6 {[%clk
0:00:35.7]} 32. Kg2 {[%clk 0:01:40.8]} 32... Qe7 {[%clk 0:00:27.3]} 33. Qe2
{[%clk 0:01:39]} 33... Na5 {[%clk 0:00:27.4]} 34. h5 {[%clk 0:01:28.6]} 34...
Kg7 {[%clk 0:00:24.9]} 35. Nh4 {[%clk 0:01:25.4]} 35... Kf7 {[%clk 0:00:07.9]}
36. Qg4 {[%clk 0:01:20.5]} 36... Qb7 {[%clk 0:00:07.1]} 37. Qg6+ {[%clk
0:01:19.8]} 37... Ke7 {[%clk 0:00:07]} 38. Qg7+ {[%clk 0:01:14]} 38... Kd6
{[%clk 0:00:07.5]} 39. Qxb7 {[%clk 0:01:12.3]} 39... Nxb7 {[%clk 0:00:07.5]} 40.
h6 {[%clk 0:01:13]} 1-0

[Event "Late-Titled-Tuesday-Blitz-September-05-2023"]
[Site "Chess.com"]
[Date "2023.09.05"]
[Round "3"]
[White "hammahamma"]
[Black "NelsonLinda"]
[Result "0-1"]
[WhiteElo "2273"]
[BlackElo "2478"]
[TimeControl "180+1"]
[EndTime "14:27:52 PDT"]
[Termination "NelsonLinda won on time"]

1. e4 {[%clk 0:03:00.9]} 1... g6 {[%clk 0:02:42.2]} 2. d4 {[%clk 0:02:58.9]}
2... c6 {[%clk 0:02:41.9]} 3. Nc3 {[%clk 0:02:56.3]} 3... d5 {[%clk 0:02:35.6]}
4. exd5 {[%clk 0:02:45]} 4... cxd5 {[%clk 0:02:36.5]} 5. Bd3 {[%clk 0:02:42.3]}
5... Nc6 {[%clk 0:02:36.8]} 6. Nge2 {[%clk 0:02:40.5]} 6... Bg7 {[%clk
0:02:36.6]} 7. Be3 {[%clk 0:02:11.1]} 7... Nf6 {[%clk 0:02:36.5]} 8. O-O {[%clk
0:02:10.9]} 8... O-O {[%clk 0:02:36.9]} 9. a3 {[%clk 0:02:02]} 9... Ng4 {[%clk
0:02:31.9]} 10. b4 {[%clk 0:01:59.7]} 10... Nxe3 {[%clk 0:02:30.5]} 11. fxe3
{[%clk 0:01:59]} 11... a6 {[%clk 0:02:22]} 12. Na4 {[%clk 0:01:57.5]} 12... e5
{[%clk 0:02:18.6]} 13. c3 {[%clk 0:01:53.6]} 13... Qg5 {[%clk 0:02:12.6]} 14.
Qc1 {[%clk 0:01:40.9]} 14... Bh6 {[%clk 0:01:50.4]} 15. Nb6 {[%clk 0:00:48.7]}
15... Qxe3+ {[%clk 0:01:31.2]} 16. Qxe3 {[%clk 0:00:48.7]} 16... Bxe3+ {[%clk
0:01:32.1]} 17. Kh1 {[%clk 0:00:49.3]} 17... Rb8 {[%clk 0:01:32.5]} 18. Nxd5
{[%clk 0:00:48.6]} 18... exd4 {[%clk 0:01:30.1]} 19. cxd4 {[%clk 0:00:37.1]}
19... Bxd4 {[%clk 0:01:25.1]} 20. Nxd4 {[%clk 0:00:25.2]} 20... Nxd4 {[%clk
0:01:26]} 21. Nf6+ {[%clk 0:00:17.1]} 21... Kg7 {[%clk 0:01:26]} 22. Rf2 {[%clk
0:00:16.1]} 22... Be6 {[%clk 0:01:25.6]} 23. Raf1 {[%clk 0:00:14.8]} 23... Rbd8
{[%clk 0:01:23]} 24. h3 {[%clk 0:00:13.9]} 24... Nb5 {[%clk 0:01:12.1]} 25. Be4
{[%clk 0:00:10.6]} 25... b6 {[%clk 0:01:12.2]} 26. a4 {[%clk 0:00:10]} 26... Nc3
{[%clk 0:01:12]} 27. Bc6 {[%clk 0:00:09]} 27... Rd6 {[%clk 0:01:10.6]} 28. b5
{[%clk 0:00:06]} 28... axb5 {[%clk 0:01:09.7]} 29. axb5 {[%clk 0:00:05.2]} 29...
Na4 {[%clk 0:01:03.7]} 30. Ne4 {[%clk 0:00:02.7]} 30... Rd4 {[%clk 0:01:02.9]}
31. Ng5 {[%clk 0:00:02.8]} 31... Bc4 {[%clk 0:01:02.8]} 0-1

[Event "Late-Titled-Tuesday-Blitz-September-05-2023"]
[Site "Chess.com"]
[Date "2023.09.05"]
[Round "3"]
[White "tptagain"]
[Black "Boorchess"]
[Result "1-0"]
[WhiteElo "2983"]
[BlackElo "2568"]
[TimeControl "180+1"]
[EndTime "14:27:55 PDT"]
[Termination "tptagain won by resignation"]

1. Nf3 {[%clk 0:03:00.9]} 1... e6 {[%clk 0:02:53.4]} 2. b3 {[%clk 0:03:00.1]}
2... b6 {[%clk 0:02:50.8]} 3. Bb2 {[%clk 0:02:59.9]} 3... Bb7 {[%clk 0:02:51]}
4. g3 {[%clk 0:02:58.6]} 4... Nf6 {[%clk 0:02:49.7]} 5. Bg2 {[%clk 0:02:58.7]}
5... g6 {[%clk 0:02:49.7]} 6. O-O {[%clk 0:02:57.1]} 6... Bg7 {[%clk 0:02:49.9]}
7. c4 {[%clk 0:02:57.1]} 7... O-O {[%clk 0:02:49.6]} 8. d3 {[%clk 0:02:52.2]}
8... d5 {[%clk 0:02:48.3]} 9. cxd5 {[%clk 0:02:52.3]} 9... Bxd5 {[%clk
0:02:42.4]} 10. Nc3 {[%clk 0:02:48.4]} 10... Bb7 {[%clk 0:02:42.3]} 11. d4
{[%clk 0:02:41.2]} 11... Ne4 {[%clk 0:02:33.6]} 12. Qc2 {[%clk 0:02:35.7]} 12...
Nxc3 {[%clk 0:02:32.1]} 13. Bxc3 {[%clk 0:02:36.6]} 13... Nd7 {[%clk 0:02:27]}
14. Rfd1 {[%clk 0:02:36.4]} 14... Qe7 {[%clk 0:02:19.2]} 15. b4 {[%clk
0:02:27.7]} 15... Nf6 {[%clk 0:02:14.1]} 16. a3 {[%clk 0:02:18.2]} 16... Be4
{[%clk 0:01:58.8]} 17. Qd2 {[%clk 0:02:04.3]} 17... c6 {[%clk 0:01:53.7]} 18.
Rac1 {[%clk 0:01:59.2]} 18... Rac8 {[%clk 0:01:52.9]} 19. Bb2 {[%clk 0:01:55.7]}
19... Rfd8 {[%clk 0:01:52.6]} 20. Qf4 {[%clk 0:01:53]} 20... h6 {[%clk
0:01:33.1]} 21. h4 {[%clk 0:01:52.4]} 21... Bd5 {[%clk 0:01:21.1]} 22. g4 {[%clk
0:01:08.2]} 22... Ne4 {[%clk 0:01:07.3]} 23. Ne5 {[%clk 0:00:58.4]} 23... g5
{[%clk 0:01:03.3]} 24. hxg5 {[%clk 0:00:57.8]} 24... hxg5 {[%clk 0:01:03]} 25.
Qe3 {[%clk 0:00:57.2]} 25... f5 {[%clk 0:00:52.8]} 26. Qh3 {[%clk 0:00:47.8]}
26... Bxe5 {[%clk 0:00:35.1]} 27. dxe5 {[%clk 0:00:47.6]} 27... Bb3 {[%clk
0:00:08.7]} 28. Qxb3 {[%clk 0:00:44.1]} 1-0

[Event "Late-Titled-Tuesday-Blitz-September-05-2023"]
[Site "Chess.com"]
[Date "2023.09.05"]
[Round "3"]
[White "geordie_derraugh"]
[Black "hurricane7791"]
[Result "0-1"]
[WhiteElo "2462"]
[BlackElo "2720"]
[TimeControl "180+1"]
[EndTime "14:27:56 PDT"]
[Termination "hurricane7791 won on time"]

1. e4 {[%clk 0:03:00.9]} 1... c5 {[%clk 0:02:58.9]} 2. Nf3 {[%clk 0:03:00.5]}
2... d6 {[%clk 0:02:59.4]} 3. Bb5+ {[%clk 0:02:59.7]} 3... Nd7 {[%clk
0:02:59.8]} 4. d4 {[%clk 0:02:59.6]} 4... cxd4 {[%clk 0:03:00.7]} 5. Qxd4 {[%clk
0:02:59.4]} 5... a6 {[%clk 0:03:01.6]} 6. Bxd7+ {[%clk 0:02:58.5]} 6... Qxd7
{[%clk 0:03:02.5]} 7. c4 {[%clk 0:02:58.6]} 7... e5 {[%clk 0:03:03.4]} 8. Qd3
{[%clk 0:02:58.2]} 8... f5 {[%clk 0:03:04.3]} 9. exf5 {[%clk 0:02:54]} 9... Qxf5
{[%clk 0:03:05.2]} 10. Qxf5 {[%clk 0:02:53.6]} 10... Bxf5 {[%clk 0:03:06.1]} 11.
Be3 {[%clk 0:02:40.3]} 11... Rc8 {[%clk 0:03:06]} 12. Nbd2 {[%clk 0:02:40]}
12... Nf6 {[%clk 0:03:01.6]} 13. Ke2 {[%clk 0:02:37]} 13... h6 {[%clk
0:03:01.3]} 14. Rac1 {[%clk 0:02:35.7]} 14... Kf7 {[%clk 0:03:01.2]} 15. Rhd1
{[%clk 0:02:29.6]} 15... Be7 {[%clk 0:03:00.6]} 16. b4 {[%clk 0:02:18.8]} 16...
Rhe8 {[%clk 0:02:59]} 17. c5 {[%clk 0:02:02.6]} 17... e4 {[%clk 0:02:53.7]} 18.
Nd4 {[%clk 0:02:00]} 18... Bg4+ {[%clk 0:02:54.1]} 19. f3 {[%clk 0:02:00.1]}
19... exf3+ {[%clk 0:02:54.6]} 20. gxf3 {[%clk 0:02:00.4]} 20... Bd7 {[%clk
0:02:47.3]} 21. N4b3 {[%clk 0:01:04.7]} 21... dxc5 {[%clk 0:02:38.3]} 22. bxc5
{[%clk 0:01:02.6]} 22... Bb5+ {[%clk 0:02:29.9]} 23. Kf2 {[%clk 0:01:02.5]}
23... Nd5 {[%clk 0:02:29.9]} 24. Bd4 {[%clk 0:00:58]} 24... Bh4+ {[%clk
0:02:28.5]} 25. Kg1 {[%clk 0:00:57.1]} 25... Nf4 {[%clk 0:02:27.5]} 26. Ne4
{[%clk 0:00:24.9]} 26... Rxe4 {[%clk 0:02:25.9]} 27. fxe4 {[%clk 0:00:23.9]}
27... Ne2+ {[%clk 0:02:26.4]} 28. Kg2 {[%clk 0:00:24]} 28... Nxc1 {[%clk
0:02:26.6]} 29. Rxc1 {[%clk 0:00:21.6]} 29... Bc6 {[%clk 0:02:27]} 30. Kf3
{[%clk 0:00:20.9]} 30... Re8 {[%clk 0:02:23.2]} 31. Nd2 {[%clk 0:00:11.7]} 31...
Bg5 {[%clk 0:02:23.6]} 32. Rd1 {[%clk 0:00:11.9]} 32... Bxd2 {[%clk 0:02:23.3]}
33. Rxd2 {[%clk 0:00:12.1]} 33... Rxe4 {[%clk 0:02:24]} 34. Kg3 {[%clk
0:00:12.1]} 34... g5 {[%clk 0:02:21.9]} 35. Bf2 {[%clk 0:00:12]} 35... Kg6
{[%clk 0:02:20]} 36. Rd6+ {[%clk 0:00:11.7]} 36... Kh5 {[%clk 0:02:20]} 37. Bd4
{[%clk 0:00:08.4]} 37... Rg4+ {[%clk 0:02:18]} 38. Kf2 {[%clk 0:00:07.3]} 38...
Rg2+ {[%clk 0:02:17.5]} 39. Kf1 {[%clk 0:00:04.5]} 39... Rxh2 {[%clk 0:02:16.2]}
40. Kg1 {[%clk 0:00:04.2]} 40... Rg2+ {[%clk 0:02:14.1]} 41. Kf1 {[%clk
0:00:04.3]} 41... Rxa2 {[%clk 0:02:14.8]} 42. Bg7 {[%clk 0:00:03.9]} 42... Kg4
{[%clk 0:02:15.4]} 43. Bxh6 {[%clk 0:00:03.1]} 43... Be4 {[%clk 0:02:04.8]} 44.
Rd4 {[%clk 0:00:02.2]} 44... Kf3 {[%clk 0:02:04.5]} 45. Ke1 {[%clk 0:00:02.4]}
45... g4 {[%clk 0:02:03.1]} 46. Rd8 {[%clk 0:00:02.3]} 46... Re2+ {[%clk
0:01:48.4]} 47. Kd1 {[%clk 0:00:01.9]} 47... Bf5 {[%clk 0:01:48.7]} 48. Rf8
{[%clk 0:00:01.8]} 48... Re5 {[%clk 0:01:49.2]} 49. Rg8 {[%clk 0:00:01.8]} 49...
g3 {[%clk 0:01:48.8]} 50. Bg7 {[%clk 0:00:02.1]} 50... Rd5+ {[%clk 0:01:48.2]}
51. Ke1 {[%clk 0:00:02.2]} 51... g2 {[%clk 0:01:46.8]} 52. Bh6 {[%clk
0:00:01.6]} 52... Re5+ {[%clk 0:01:43.7]} 53. Kd2 {[%clk 0:00:01.8]} 53... Re2+
{[%clk 0:01:42.4]} 0-1

[Event "Late-Titled-Tuesday-Blitz-September-05-2023"]
[Site "Chess.com"]
[Date "2023.09.05"]
[Round "3"]
[White "JaloliddinIlkhomi"]
[Black "Smiechu"]
[Result "0-1"]
[WhiteElo "2565"]
[BlackElo "2423"]
[TimeControl "180+1"]
[EndTime "14:27:56 PDT"]
[Termination "Smiechu won by resignation"]

1. Nf3 {[%clk 0:03:00.1]} 1... Nf6 {[%clk 0:02:58.3]} 2. c4 {[%clk 0:02:59.7]}
2... c5 {[%clk 0:02:58.4]} 3. g3 {[%clk 0:02:58.4]} 3... Nc6 {[%clk 0:02:58.3]}
4. Bg2 {[%clk 0:02:58.5]} 4... g6 {[%clk 0:02:58.9]} 5. O-O {[%clk 0:02:59]}
5... Bg7 {[%clk 0:02:59.5]} 6. Nc3 {[%clk 0:02:58.2]} 6... O-O {[%clk
0:02:59.3]} 7. d4 {[%clk 0:02:58.6]} 7... cxd4 {[%clk 0:02:59.5]} 8. Nxd4 {[%clk
0:02:59.5]} 8... d6 {[%clk 0:02:59.9]} 9. e4 {[%clk 0:02:59.3]} 9... Nxe4 {[%clk
0:02:46.7]} 10. Nxc6 {[%clk 0:02:56.3]} 10... Nxc3 {[%clk 0:02:46.8]} 11. Nxd8
{[%clk 0:02:46.2]} 11... Nxd1 {[%clk 0:02:46.2]} 12. Nxb7 {[%clk 0:02:41.8]}
12... Bxb7 {[%clk 0:02:40.9]} 13. Bxb7 {[%clk 0:02:42]} 13... Rab8 {[%clk
0:02:41]} 14. Rxd1 {[%clk 0:02:39.6]} 14... Rxb7 {[%clk 0:02:40.9]} 15. Rb1
{[%clk 0:02:38]} 15... Rc8 {[%clk 0:02:38.7]} 16. b3 {[%clk 0:01:56.2]} 16...
Rxc4 {[%clk 0:02:37.4]} 17. Bg5 {[%clk 0:01:47.4]} 17... Rc2 {[%clk 0:02:34]}
18. Rbc1 {[%clk 0:01:47.6]} 18... Rxc1 {[%clk 0:02:16.5]} 19. Rxc1 {[%clk
0:01:48.5]} 19... h6 {[%clk 0:02:16.7]} 20. Rc8+ {[%clk 0:01:48.6]} 20... Kh7
{[%clk 0:02:16.4]} 21. Be3 {[%clk 0:01:49.4]} 21... d5 {[%clk 0:02:12.8]} 22.
Bc5 {[%clk 0:01:48.5]} 22... Rd7 {[%clk 0:02:09.9]} 23. Ra8 {[%clk 0:01:45.1]}
23... d4 {[%clk 0:02:08]} 24. Rxa7 {[%clk 0:01:45.6]} 24... Rd5 {[%clk
0:02:07.9]} 25. Bb4 {[%clk 0:01:33.1]} 25... d3 {[%clk 0:02:04.8]} 26. Rxe7
{[%clk 0:01:29.9]} 26... d2 {[%clk 0:01:56.1]} 27. Bxd2 {[%clk 0:01:30.1]} 27...
Rxd2 {[%clk 0:01:56.1]} 28. Rxf7 {[%clk 0:01:29.7]} 28... Rxa2 {[%clk
0:01:55.9]} 29. h4 {[%clk 0:01:29.5]} 29... Rb2 {[%clk 0:01:54.1]} 30. Rb7
{[%clk 0:01:29.9]} 30... Kg8 {[%clk 0:01:46.6]} 31. Rb8+ {[%clk 0:01:29.5]}
31... Kf7 {[%clk 0:01:45.3]} 32. Rb7+ {[%clk 0:01:30.1]} 32... Kf6 {[%clk
0:01:41.9]} 33. Rb6+ {[%clk 0:01:28.1]} 33... Kf5 {[%clk 0:01:40.4]} 34. Rb5+
{[%clk 0:01:28.5]} 34... Kg4 {[%clk 0:01:36.5]} 35. Rb4+ {[%clk 0:01:11.8]}
35... Kf5 {[%clk 0:01:29.8]} 36. Rb5+ {[%clk 0:01:11.7]} 36... Ke4 {[%clk
0:01:29.1]} 37. Rb6 {[%clk 0:01:01.2]} 37... Bd4 {[%clk 0:01:24.6]} 38. Rxg6
{[%clk 0:01:01.7]} 38... Rxf2 {[%clk 0:01:23.7]} 39. Kh1 {[%clk 0:00:57.7]}
39... Be3 {[%clk 0:01:14.3]} 40. b4 {[%clk 0:00:49.9]} 40... Rb2 {[%clk
0:01:13.2]} 41. Re6+ {[%clk 0:00:48.8]} 41... Kf3 {[%clk 0:01:12.9]} 42. g4
{[%clk 0:00:45.4]} 42... Rxb4 {[%clk 0:01:04.9]} 43. Rf6+ {[%clk 0:00:45.3]}
43... Kg3 {[%clk 0:01:03.5]} 44. h5 {[%clk 0:00:46.2]} 44... Rb1+ {[%clk
0:01:02.6]} 0-1

[Event "Late-Titled-Tuesday-Blitz-September-05-2023"]
[Site "Chess.com"]
[Date "2023.09.05"]
[Round "3"]
[White "MeisterJabo"]
[Black "santosalberto1987"]
[Result "1-0"]
[WhiteElo "2313"]
[BlackElo "2533"]
[TimeControl "180+1"]
[EndTime "14:27:56 PDT"]
[Termination "MeisterJabo won by checkmate"]

1. d4 {[%clk 0:02:59.1]} 1... d5 {[%clk 0:03:00]} 2. c4 {[%clk 0:02:56]} 2... c6
{[%clk 0:03:00]} 3. Nc3 {[%clk 0:02:55.5]} 3... Nf6 {[%clk 0:02:59.7]} 4. Nf3
{[%clk 0:02:54.5]} 4... dxc4 {[%clk 0:02:59.4]} 5. e4 {[%clk 0:02:51]} 5... b5
{[%clk 0:02:57.6]} 6. e5 {[%clk 0:02:49.2]} 6... Nd5 {[%clk 0:02:56.8]} 7. Be2
{[%clk 0:02:45.4]} 7... Bf5 {[%clk 0:02:55.7]} 8. O-O {[%clk 0:02:42.3]} 8... e6
{[%clk 0:02:55.5]} 9. a4 {[%clk 0:02:17.9]} 9... Nd7 {[%clk 0:02:33.8]} 10. axb5
{[%clk 0:02:15.1]} 10... Nxc3 {[%clk 0:02:33.9]} 11. bxc3 {[%clk 0:02:13.8]}
11... cxb5 {[%clk 0:02:34.2]} 12. d5 {[%clk 0:02:02.7]} 12... Bc5 {[%clk
0:02:30.3]} 13. Nd4 {[%clk 0:01:48.3]} 13... Bxd4 {[%clk 0:02:27.5]} 14. Qxd4
{[%clk 0:01:47.2]} 14... O-O {[%clk 0:02:27.2]} 15. Ba3 {[%clk 0:01:33.6]} 15...
Re8 {[%clk 0:02:26.2]} 16. Bf3 {[%clk 0:01:25.7]} 16... Rb8 {[%clk 0:02:00.8]}
17. Bd6 {[%clk 0:01:14.6]} 17... Rc8 {[%clk 0:01:54.4]} 18. Rxa7 {[%clk
0:01:09.8]} 18... exd5 {[%clk 0:01:54.2]} 19. Qxd5 {[%clk 0:00:57.5]} 19... Qb6
{[%clk 0:01:45.2]} 20. Rb7 {[%clk 0:00:51.9]} 20... Qa5 {[%clk 0:01:37.9]} 21.
Qxb5 {[%clk 0:00:50.1]} 21... Qxb5 {[%clk 0:01:28.3]} 22. Rxb5 {[%clk 0:00:51]}
22... Bd3 {[%clk 0:01:25.8]} 23. Ra1 {[%clk 0:00:48.3]} 23... Nf8 {[%clk
0:01:21]} 24. g3 {[%clk 0:00:31.3]} 24... Ng6 {[%clk 0:01:19]} 25. Bb7 {[%clk
0:00:27.1]} 25... Rcd8 {[%clk 0:01:09]} 26. f4 {[%clk 0:00:25]} 26... h5 {[%clk
0:00:58.3]} 27. Bc6 {[%clk 0:00:25]} 27... Re6 {[%clk 0:00:58.1]} 28. Bd5 {[%clk
0:00:25.4]} 28... Ree8 {[%clk 0:00:57.2]} 29. Ra7 {[%clk 0:00:25.1]} 29... Nh8
{[%clk 0:00:56.8]} 30. Rbb7 {[%clk 0:00:24.4]} 30... Bg6 {[%clk 0:00:51]} 31. f5
{[%clk 0:00:20.6]} 31... Bxf5 {[%clk 0:00:50.7]} 32. Bxf7+ {[%clk 0:00:21.2]}
32... Nxf7 {[%clk 0:00:50.8]} 33. Rxf7 {[%clk 0:00:22.1]} 33... Be6 {[%clk
0:00:47.4]} 34. Rxg7+ {[%clk 0:00:22.1]} 34... Kh8 {[%clk 0:00:47.4]} 35. Rh7+
{[%clk 0:00:22.7]} 35... Kg8 {[%clk 0:00:48.1]} 36. Rag7# {[%clk 0:00:23.5]} 1-0